bitfinex-derivatives/quotes_ETHF0:USTF0_20230702
["timestamp","ask_amount","ask_price","bid_price","bid_amount"]
[1688291319120,0.88024412,1918.6,1918.5,0.06672891]
[1688291319423,4.09098589,1918.6,1918.5,0.06672891]
[1688291319626,5.02945271,1918.6,1918.5,0.06672891]
[1688291321021,5.02945271,1918.6,1918.5,0.37949891]
[1688291324127,4.09098589,1918.6,1918.5,0.37949891]
[1688291324329,7.8365448,1918.6,1918.5,0.37949891]
[1688291324628,7.83654588,1918.6,1918.5,0.37949891]
[1688291325028,6.89798589,1918.6,1918.5,0.37949891]
[1688291327831,7.32041304,1918.6,1918.5,0.37949891]
[1688291328630,4.11261304,1918.6,1918.5,0.37949891]
[1688291328832,3.54512892,1918.6,1918.5,0.37949891]
[1688291329019,0.31570177,1918.6,1918.5,0.37949891]
[1688291329224,0.00294177,1918.6,1918.5,0.37949891]
[1688291330336,3.5957184,1918.7,1918.5,0.37949891]
[1688291330635,0.7897184,1918.7,1918.6,3.35845316]
[1688291330934,0.7897184,1918.7,1918.6,3.74441817]
[1688291331129,0.7897184,1918.7,1918.6,6.95221817]
[1688291331333,0.79266286,1918.7,1918.6,6.95221817]
[1688291346437,1.07937921,1918.7,1918.6,6.95221817]
[1688291352143,1.07937921,1918.7,1918.6,4.16121817]
[1688291353452,1.07937921,1918.7,1918.6,3.59376501]
[1688291355841,0.79266286,1918.7,1918.6,3.59376501]
[1688291356046,1.07937921,1918.7,1918.6,3.59376501]
[1688291356356,1.07937921,1918.7,1918.6,0.38596501]
[1688291357748,1.07937921,1918.7,1918.5,3.69622316]
[1688291357749,2.816,1918.5,1918.3,0.42395698]
[1688291357954,7.16779047,1918.4,1918.1,0.93848]
[1688291358156,2.806,1918.2,1918.1,0.93848]
[1688291358448,3.97302047,1918.2,1918.1,0.40752421]
[1688291358748,3.97302047,1918.2,1918.1,0.31284]
[1688291360850,3.97302047,1918.2,1918.0,1.46815464]
[1688291362145,3.11884,1918.1,1918.0,1.46815464]
[1688291362349,3.12161255,1918.1,1918.0,1.46815464]
[1688291362953,3.12161255,1918.1,1918.0,7.46695464]
[1688291362954,0.31561255,1918.1,1918.0,7.46695464]
[1688291365356,0.31284,1918.1,1918.0,7.68459022]
[1688291366446,0.59955635,1918.1,1918.0,7.68459022]
[1688291367357,0.6023289,1918.1,1918.0,7.68459022]
[1688291370861,0.31561255,1918.1,1918.0,7.68459022]
[1688291372061,0.31561255,1918.1,1918.0,4.89359022]
[1688291373066,0.6023289,1918.1,1918.0,4.89359022]
[1688291384074,0.31561255,1918.1,1918.0,4.89359022]
[1688291386474,0.6023289,1918.1,1918.0,4.89359022]
[1688291387075,0.31561255,1918.1,1918.0,4.89359022]
[1688291388774,0.6023289,1918.1,1918.0,4.89359022]
[1688291391672,0.31561255,1918.1,1918.0,4.89359022]
[1688291392474,0.6023289,1918.1,1918.0,4.89359022]
[1688291393174,0.31561255,1918.1,1918.0,4.89359022]
[1688291404385,0.31284,1918.1,1918.0,4.89359022]
[1688291405188,0.59955635,1918.1,1918.0,4.89359022]
[1688291405996,0.59955635,1918.1,1918.0,5.02313489]
[1688291406393,0.59955635,1918.1,1918.0,3.98029489]
[1688291406603,3.39255635,1918.1,1918.0,4.29314489]
[1688291414401,3.39255635,1918.1,1918.0,3.98029489]
[1688291414598,3.39255635,1918.1,1918.0,4.29314489]
[1688291415612,3.39255635,1918.1,1918.0,3.98029489]
[1688291416106,3.39255635,1918.1,1918.0,4.29314489]
[1688291418711,3.39255635,1918.1,1918.0,3.98029489]
[1688291421614,3.39255635,1918.1,1918.0,0.77249489]
[1688291423722,4.33122701,1918.1,1918.0,0.77249489]
[1688291424220,4.33122701,1918.1,1918.0,0.34718025]
[1688291425212,4.75139811,1918.1,1918.0,0.34718025]
[1688291431322,4.7545146,1918.1,1918.0,0.34718025]
[1688291435820,4.7545146,1918.1,1918.0,0.22463077]
[1688291437625,4.7545146,1918.1,1918.0,0.31915339]
[1688291448838,4.7545146,1918.1,1918.0,5.37265339]
[1688291456151,7.9623146,1918.1,1918.0,5.37265339]
[1688291458950,7.67559825,1918.1,1918.0,5.37265339]
[1688291459553,7.9623146,1918.1,1918.0,5.37265339]
[1688291463354,7.9623146,1918.1,1918.0,0.31915339]
[1688291463548,14.80760924,1918.1,1918.0,0.31915339]
[1688291463856,14.80760924,1918.1,1917.9,5.16462023]
[1688291464059,1.81900478,1918.0,1917.9,5.16462023]
[1688291464352,1.82209461,1918.0,1917.9,0.00782023]
[1688291464544,1.82209461,1918.0,1917.7,0.41821824]
[1688291464545,0.31289,1917.8,1917.7,0.41821824]
[1688291464742,7.81984478,1917.8,1917.6,10.2723]
[1688291464947,4.05857066,1917.7,1917.6,10.2723]
[1688291465351,4.34835134,1917.7,1917.6,10.2723]
[1688291466358,4.34835134,1917.7,1917.6,5.0558]
[1688291468552,4.34835134,1917.7,1917.6,5.45238371]
[1688291471653,3.40968068,1917.7,1917.6,5.45238371]
[1688291472453,4.34869764,1917.7,1917.6,5.45238371]
[1688291473359,3.40968068,1917.7,1917.6,5.45238371]
[1688291475256,3.40968068,1917.7,1917.6,0.39658371]
[1688291475449,3.40968068,1917.7,1917.5,0.00782207]
[1688291475652,3.67340412,1917.6,1917.5,0.00782207]
[1688291476456,3.67645994,1917.6,1917.5,0.00782207]
[1688291481367,8.49805994,1917.6,1917.5,0.00782207]
[1688291483661,8.49805994,1917.6,1917.5,0.40448741]
[1688291492673,3.67645994,1917.6,1917.5,0.40448741]
[1688291493269,3.10897582,1917.6,1917.5,0.40448741]
[1688291499066,6.31677582,1917.6,1917.5,0.40448741]
[1688291500665,7.25583288,1917.6,1917.5,0.40448741]
[1688291513068,4.04803288,1917.6,1917.5,0.40448741]
[1688291513272,3.10897582,1917.6,1917.5,0.40448741]
[1688291515177,6.31677582,1917.6,1917.5,0.40448741]
[1688291515371,7.25583288,1917.6,1917.5,0.40448741]
[1688291522188,7.25583288,1917.6,1917.5,0.30038839]
[1688291526484,7.25583288,1917.6,1917.5,0.22531449]
[1688291526680,7.54254923,1917.6,1917.5,0.22531449]
[1688291541794,4.33474923,1917.6,1917.5,0.22531449]
[1688291542394,4.04803288,1917.6,1917.5,0.22531449]
[1688291542793,4.33474923,1917.6,1917.5,0.22531449]
[1688291543690,4.90223335,1917.6,1917.5,0.22531449]
[1688291544293,8.11003335,1917.6,1917.5,0.22531449]
[1688291549795,4.90223335,1917.6,1917.5,0.22531449]
[1688291550110,4.33474923,1917.6,1917.5,0.22531449]
[1688291550294,4.04803288,1917.6,1917.5,0.22531449]
[1688291550494,4.33474923,1917.6,1917.5,0.22531449]
[1688291551406,7.54254923,1917.6,1917.5,0.22531449]
[1688291551716,4.33474923,1917.6,1917.5,0.22531449]
[1688291553002,7.54254923,1917.6,1917.5,0.22531449]
[1688291553200,4.33474923,1917.6,1917.5,0.22531449]
[1688291574018,4.33474923,1917.6,1917.4,5.37266248]
[1688291574228,2.807,1917.5,1917.4,5.37266248]
[1688291574522,3.11992,1917.5,1917.4,5.37266248]
[1688291575410,3.12286041,1917.5,1917.4,5.37266248]
[1688291575817,4.06191747,1917.5,1917.4,5.37266248]
[1688291577525,4.62940159,1917.5,1917.4,5.05972248]
[1688291578325,4.62940159,1917.5,1917.4,5.28487366]
[1688291584026,4.62940159,1917.5,1917.4,5.59781366]
[1688291585528,4.06191747,1917.5,1917.4,5.59781366]
[1688291587921,4.47602232,1917.5,1917.4,5.59781366]
[1688291588819,4.47602232,1917.5,1917.4,5.28487366]
[1688291589625,4.47602232,1917.5,1917.4,0.23297366]
[1688291601152,4.47602232,1917.5,1917.4,0.00782248]
[1688291602052,4.47602232,1917.5,1917.4,0.23310333]
[1688291608550,9.47602232,1917.5,1917.4,0.23310333]
[1688291614563,4.47602232,1917.5,1917.4,0.23310333]
[1688291614768,9.47602232,1917.5,1917.4,0.23310333]
[1688291618879,11.68961511,1917.6,1917.4,0.23310333]
[1688291619073,12.40443849,1918.3,1917.5,11.01]
[1688291619375,3.2078,1918.6,1918.4,0.31278]
[1688291619573,2.793,1918.5,1918.4,0.88023316]
[1688291622181,2.793,1918.5,1918.4,0.31278]
[1688291630784,5.609,1918.5,1918.4,0.31278]
[1688291630993,5.92177,1918.5,1918.4,0.31278]
[1688291631782,5.92177,1918.5,1918.0,0.78199]
[1688291631783,0.85420047,1918.4,1918.0,0.78199]
[1688291631986,2.793,1918.1,1918.0,0.78199]
[1688291632188,3.10583,1918.1,1918.0,0.78207]
[1688291632485,3.96003047,1918.1,1917.9,0.7821]
[1688291632683,1.16703047,1918.1,1917.9,0.7821]
[1688291634089,1.16703047,1918.1,1917.8,0.78221]
[1688291634090,5.632,1917.9,1917.8,0.78221]
[1688291634288,5.93487,1917.9,1917.8,0.78221]
[1688291634482,6.78907047,1917.9,1917.8,0.86529374]
[1688291648199,6.47620047,1917.9,1917.8,0.86529374]
[1688291649095,6.47620047,1917.9,1917.8,0.78221]
[1688291652607,2.806,1917.9,1917.8,3.99001]
[1688291652900,0.09326587,1917.9,1917.8,3.99001]
[1688291653501,0.09326587,1917.9,1917.8,6.80601]
[1688291654000,0.09727498,1917.9,1917.8,6.80601]
[1688291654510,0.0972727,1917.9,1917.8,6.80601]
[1688291654805,3.22714945,1918.1,1917.8,6.80601]
[1688291655004,0.09727047,1918.0,1917.8,6.80601]
[1688291657610,0.09727047,1918.0,1917.8,3.59821]
[1688291657805,0.38398682,1918.0,1917.8,3.59821]
[1688291660205,0.38398682,1918.0,1917.8,6.80601]
[1688291662021,0.09727047,1918.0,1917.8,6.80601]
[1688291662222,2.89027047,1918.0,1917.8,3.99001]
[1688291662614,3.17698682,1918.0,1917.8,3.99001]
[1688291663018,3.17698682,1918.0,1917.8,9.14101]
[1688291663221,2.89027047,1918.0,1917.9,0.56745316]
[1688291663425,2.89027047,1918.0,1917.9,0.88031316]
[1688291668524,2.89027047,1918.0,1917.9,4.08811316]
[1688291668825,3.17698682,1918.0,1917.9,4.08811316]
[1688291669225,2.89027047,1918.0,1917.9,4.08811316]
[1688291669630,3.17698682,1918.0,1917.9,4.08811316]
[1688291672029,2.89027047,1918.0,1917.9,4.08811316]
[1688291673735,2.89027047,1918.0,1917.9,4.50081655]
[1688291673942,0.09727047,1918.0,1917.9,4.50081655]
[1688291676035,0.38398682,1918.0,1917.9,1.29301655]
[1688291676232,1.3228386,1918.0,1917.9,0.72556339]
[1688291676830,1.03612225,1918.0,1917.9,0.72556339]
[1688291677335,1.3228386,1918.0,1917.9,0.72556339]
[1688291677927,0.09727047,1918.0,1917.9,16.45078238]
[1688291678340,0.18100799,1918.0,1917.9,19.24178238]
[1688291698147,0.46772434,1918.0,1917.9,19.24178238]
[1688291698346,0.46772434,1918.0,1917.9,18.82907899]
[1688291698656,1.40653398,1918.0,1917.9,18.82907899]
[1688291701151,1.11981763,1918.0,1917.9,18.82907899]
[1688291701758,0.18100799,1918.0,1917.9,18.82907899]
[1688291701950,1.11981763,1918.0,1917.9,18.82907899]
[1688291702456,0.18100799,1918.0,1917.9,18.82907899]
[1688291704265,0.46772434,1918.0,1917.9,18.82907899]
[1688291706958,0.18100799,1918.0,1917.9,18.82907899]
[1688291708958,3.58756434,1918.0,1917.9,0.31286]
[1688291709164,4.34536599,1918.0,1917.9,0.31286]
[1688291709668,4.76855784,1918.0,1917.9,0.31286]
[1688291731474,4.77149795,1918.0,1917.9,0.31286]
[1688291732079,4.77049795,1918.0,1917.9,0.31286]
[1688291736291,4.77049795,1918.0,1917.6,0.78225]
[1688291736292,4.75749795,1918.0,1917.6,0.78225]
[1688291736584,3.10589,1917.7,1917.6,0.78225]
[1688291736784,6.60040635,1917.7,1917.6,0.78225]
[1688291736982,7.53921599,1917.7,1917.6,0.78225]
[1688291737177,8.10670011,1917.7,1917.5,5.71857]
[1688291737484,8.40841624,1917.6,1917.5,5.71857]
[1688291737679,9.34748154,1917.6,1917.5,5.71857]
[1688291738278,9.34748154,1917.6,1917.5,5.87284369]
[1688291739293,8.40841624,1917.6,1917.5,5.87284369]
[1688291742089,5.61541624,1917.6,1917.5,5.87284369]
[1688291742694,0.31581624,1917.6,1917.5,5.87284369]
[1688291743096,0.31581624,1917.6,1917.5,5.78304078]
[1688291743299,0.60253259,1917.6,1917.5,5.78304078]
[1688291745095,0.60253259,1917.6,1917.5,5.31369078]
[1688291745793,3.39553259,1917.6,1917.5,5.31369078]
[1688291753404,3.39553259,1917.6,1917.5,5.36327005]
[1688291755006,3.39553259,1917.6,1917.5,0.11405005]
[1688291755206,2.816,1917.4,1917.1,0.31298]
[1688291755403,2.816,1917.4,1917.1,5.16398]
[1688291755404,2.806,1917.2,1917.1,5.16398]
[1688291755713,3.11897,1917.2,1917.1,5.16398]
[1688291756614,3.12185202,1917.2,1917.1,5.16398]
[1688291760318,8.05915202,1917.2,1917.1,5.16398]
[1688291762814,8.05915202,1917.2,1917.1,5.37928395]
[1688291766427,8.4836816,1917.2,1917.1,5.37928395]
[1688291767422,8.4836816,1917.2,1917.1,0.21530395]
[1688291775625,8.4836816,1917.2,1917.1,0.52829395]
[1688291779538,8.4836816,1917.2,1917.1,0.21530395]
[1688291780942,8.4836816,1917.2,1917.1,0.52829395]
[1688291781340,8.4836816,1917.2,1917.1,0.21530395]
[1688291784548,8.4836816,1917.2,1917.1,0.52829395]
[1688291786034,8.4836816,1917.2,1917.1,0.21530395]
[1688291787441,11.6914816,1917.2,1917.1,0.21530395]
[1688291790640,8.4836816,1917.2,1917.1,0.21530395]
[1688291791951,11.6914816,1917.2,1917.1,0.21530395]
[1688291793638,12.63073984,1917.2,1917.1,0.21530395]
[1688291794047,12.63073984,1917.2,1916.8,5.0417]
[1688291794048,0.85420047,1917.1,1916.8,5.0417]
[1688291794248,0.313,1917.0,1916.9,12.52393903]
[1688291794453,3.106,1917.0,1916.8,5.0417]
[1688291794743,3.40673635,1916.9,1916.8,5.0417]
[1688291794947,8.40223635,1916.9,1916.8,17.56563275]
[1688291795652,8.96972047,1916.9,1916.8,17.56563275]
[1688291796048,8.96972047,1916.9,1916.8,17.97279966]
[1688291797559,8.97259464,1916.9,1916.8,17.97279966]
[1688291797954,8.11839417,1916.9,1916.8,18.28582966]
[1688291798654,8.40511052,1916.9,1916.8,18.28582966]
[1688291799150,2.80987417,1916.9,1916.8,21.49362966]
[1688291799549,2.79587417,1916.9,1916.8,21.49362966]
[1688291801658,2.79587417,1916.9,1916.8,21.63599106]
[1688291809163,3.08259052,1916.9,1916.8,21.63599106]
[1688291809356,2.79587417,1916.9,1916.8,21.63599106]
[1688291809551,0.00287417,1916.9,1916.8,21.63599106]
[1688291810655,2.793,1917.1,1916.8,21.63599106]
[1688291810856,2.793,1917.1,1917.0,3.2078]
[1688291811054,2.793,1917.1,1917.0,16.04473275]
[1688291811357,2.793,1917.1,1917.0,16.18714698]
[1688291811358,3.2036633,1917.1,1917.0,16.18714698]
[1688291811564,3.20655442,1917.1,1917.0,16.18714698]
[1688291821669,2.80989112,1917.1,1917.0,16.14228838]
[1688291822065,0.00289112,1917.1,1917.0,16.14228838]
[1688291822669,8.04,1917.2,1917.0,16.14228838]
[1688291822870,8.04,1917.2,1917.1,13.40436591]
[1688291823271,8.04,1917.2,1917.1,13.49940292]
[1688291823670,8.04278128,1917.2,1917.1,13.49940292]
[1688291824072,2.80878128,1917.2,1917.1,13.49940292]
[1688291825175,3.23529674,1917.2,1917.1,13.49940292]
[1688291828374,8.40359674,1917.2,1917.1,13.49940292]
[1688291833897,9.00328309,1917.2,1917.1,13.49940292]
[1688291834885,10.57721972,1917.2,1917.1,13.49940292]
[1688291835597,9.00050181,1917.2,1917.1,13.49940292]
[1688291835789,8.40081546,1917.2,1917.1,13.49940292]
[1688291838901,8.68753181,1917.2,1917.1,13.49940292]
[1688291842807,8.40081546,1917.2,1917.1,13.49940292]
[1688291843207,7.9743,1917.2,1917.1,13.49940292]
[1688291843395,7.9743,1917.2,1917.1,13.47415412]
[1688291843696,7.9743,1917.2,1917.1,13.40436591]
[1688291845696,2.806,1917.2,1917.1,13.40436591]
[1688291845990,0.00782411,1917.3,1917.1,16.22036591]
[1688291846190,0.00782411,1917.3,1917.2,16.04470275]
[1688291846899,0.00782411,1917.3,1917.2,21.14880275]
[1688291850202,5.03552411,1917.3,1917.2,16.04470275]
[1688291851499,5.32224046,1917.3,1917.2,16.04470275]
[1688291851702,5.03552411,1917.3,1917.2,16.04470275]
[1688291856199,0.00782411,1917.3,1917.2,16.04470275]
[1688291857007,0.00782411,1917.3,1917.2,16.46237293]
[1688291860511,0.00782411,1917.3,1917.2,19.27837293]
[1688291863811,0.00782411,1917.3,1917.2,24.25047293]
[1688291864407,0.41719844,1917.6,1917.2,24.25047293]
[1688291864408,0.41719844,1917.6,1917.5,5.0]
[1688291864619,5.2228,1918.0,1917.5,23.54773275]
[1688291864814,5.2228,1918.0,1917.5,10.75436]
[1688291864815,0.15334731,1917.6,1917.5,10.75436]
[1688291865011,5.2228,1918.0,1917.5,24.29897243]
[1688291865321,5.2228,1918.0,1917.9,3.2078]
[1688291865507,5.2228,1918.0,1917.9,3.52065]
[1688291865912,5.63480873,1918.0,1917.9,3.52065]
[1688291868621,5.92152508,1918.0,1917.9,3.52065]
[1688291869520,5.63480873,1918.0,1917.9,3.52065]
[1688291871724,5.6374645,1918.0,1917.9,3.52065]
[1688291872114,5.6374645,1918.0,1917.9,6.33665]
[1688291873523,5.8806527,1918.0,1917.9,6.33665]
[1688291874018,6.16736905,1918.0,1917.9,6.33665]
[1688291875022,5.8806527,1918.0,1917.9,6.33665]
[1688291880229,5.9480401,1918.0,1917.9,6.33665]
[1688291883739,6.23475645,1918.0,1917.9,6.33665]
[1688291885526,5.9480401,1918.0,1917.9,6.33665]
[1688291886036,6.23475645,1918.0,1917.9,6.33665]
[1688291886834,6.23210068,1918.0,1917.9,6.33665]
[1688291887033,5.94538433,1918.0,1917.9,6.33665]
[1688291891438,5.5333756,1918.0,1917.9,6.33665]
[1688291896236,5.5333756,1918.0,1917.9,6.74379111]
[1688291901642,0.3105756,1918.0,1917.9,6.74379111]
[1688291904031,5.2782756,1918.0,1917.9,6.74379111]
[1688291905638,5.2782756,1918.0,1917.9,19.26101705]
[1688291909634,6.21707624,1918.0,1917.9,19.26101705]
[1688291913638,1.24937624,1918.0,1917.9,19.26101705]
[1688291913843,0.3105756,1918.0,1917.9,19.26101705]
[1688291918546,0.3105756,1918.0,1917.9,19.36501705]
[1688291918951,0.00782085,1918.1,1917.9,19.36501705]
[1688291919142,0.00782085,1918.1,1918.0,21.1516191]
[1688291923955,0.00782085,1918.1,1918.0,16.2135191]
[1688291930756,0.6073572,1918.1,1918.0,15.64606594]
[1688291932254,0.6073572,1918.1,1918.0,12.83006594]
[1688291932255,3.4003572,1918.1,1918.0,12.83006594]
[1688291932454,4.33917648,1918.1,1917.9,0.31285]
[1688291932755,0.88032412,1918.0,1917.9,0.31285]
[1688291933356,1.10819927,1918.0,1917.9,0.31285]
[1688291936056,6.00899927,1918.0,1917.9,0.31285]
[1688291943762,6.41905259,1918.0,1917.9,0.31285]
[1688291945162,6.00899927,1918.0,1917.9,0.31285]
[1688291946663,5.12867515,1918.0,1917.9,0.31285]
[1688291946967,5.12867515,1918.0,1917.9,12.82994447]
[1688291946968,0.22787515,1918.0,1917.9,12.82994447]
[1688291954274,0.22787515,1918.0,1917.9,12.93394447]
[1688291954765,0.29817916,1918.0,1917.9,12.93394447]
[1688291956567,0.29817916,1918.0,1917.9,13.34451556]
[1688291972882,0.29817916,1918.0,1917.9,13.24051556]
[1688292006307,5.20862085,1918.1,1917.9,13.24051556]
[1688292006502,5.52144085,1918.1,1918.0,16.03772447]
[1688292006811,5.8081572,1918.1,1918.0,16.03772447]
[1688292007711,5.52144085,1918.1,1918.0,16.03772447]
[1688292008906,5.20862085,1918.1,1918.0,16.60517763]
[1688292009909,0.00782085,1918.1,1918.0,16.60517763]
[1688292012115,0.00782085,1918.1,1918.0,17.96703007]
[1688292012507,0.00782085,1918.1,1918.0,16.60517763]
[1688292015321,0.00782085,1918.1,1918.0,17.96703007]
[1688292015514,0.31273,1918.7,1918.0,31.48715102]
[1688292015816,9.9459,1918.6,1918.2,0.3128]
[1688292016013,10.25864,1918.6,1918.5,3.52055]
[1688292016410,9.9459,1918.6,1918.5,16.60509763]
[1688292017014,10.25983298,1918.6,1918.5,16.60509763]
[1688292019509,10.25983298,1918.6,1918.5,4.08800316]
[1688292020215,10.25983298,1918.6,1918.5,16.60131902]
[1688292020819,10.25983298,1918.6,1918.5,4.08800316]
[1688292022012,10.54654933,1918.6,1918.5,4.08800316]
[1688292022220,10.85928933,1918.6,1918.5,3.52055]
[1688292023027,10.57257298,1918.6,1918.5,3.52055]
[1688292023823,10.85928933,1918.6,1918.5,3.52055]
[1688292030550,10.85928933,1918.6,1918.5,1.08025]
[1688292030841,10.85928933,1918.6,1918.4,0.78189]
[1688292031039,0.56748412,1918.5,1918.4,0.78189]
[1688292031233,0.88023412,1918.5,1918.4,0.78189]
[1688292031435,1.14913857,1918.5,1918.4,0.78189]
[1688292036347,1.36132784,1918.5,1918.4,0.78189]
[1688292044252,1.36132784,1918.5,1918.4,13.29607611]
[1688292044653,0.79384372,1918.5,1918.4,13.29607611]
[1688292046755,1.21164291,1918.5,1918.4,13.29607611]
[1688292055056,2.15022063,1918.5,1918.4,13.29607611]
[1688292060364,1.21164291,1918.5,1918.4,13.29607611]
[1688292061265,2.15020998,1918.5,1918.4,13.29607611]
[1688292062464,1.21164291,1918.5,1918.4,13.29607611]
[1688292062959,2.15021279,1918.5,1918.4,13.29607611]
[1688292064659,1.21164291,1918.5,1918.4,13.29607611]
[1688292064862,2.15020504,1918.5,1918.4,13.29607611]
[1688292067570,2.43692139,1918.5,1918.4,13.29607611]
[1688292073267,5.64472139,1918.5,1918.3,0.31277]
[1688292073476,0.88025412,1918.4,1918.3,0.31277]
[1688292073678,2.30318213,1918.4,1918.3,0.31277]
[1688292073871,2.30318213,1918.4,1918.3,12.82781729]
[1688292074077,7.50358213,1918.4,1918.3,12.82781729]
[1688292074478,7.50358213,1918.4,1918.3,12.82782729]
[1688292077867,6.56502,1918.4,1918.3,12.82782729]
[1688292096798,5.99753588,1918.4,1918.3,12.82782729]
[1688292103001,6.93614331,1918.4,1918.3,12.82782729]
[1688292106291,6.93614331,1918.4,1918.3,12.51504729]
[1688292108606,6.93614331,1918.4,1918.3,12.82782729]
[1688292109201,5.99753588,1918.4,1918.3,12.82782729]
[1688292111402,5.99753588,1918.4,1918.3,16.03562729]
[1688292112106,0.48436588,1918.4,1918.3,16.03562729]
[1688292112698,0.79712588,1918.4,1918.3,16.03562729]
[1688292134832,0.48436588,1918.4,1918.3,16.03562729]
[1688292135031,0.48436588,1918.4,1918.3,16.13962729]
[1688292135325,0.0078184,1918.7,1918.3,18.07146648]
[1688292135527,0.0078184,1918.7,1918.6,3.2078]
[1688292135730,0.3205384,1918.7,1918.6,4.08798316]
[1688292135932,0.3205384,1918.7,1918.6,16.60303045]
[1688292136622,0.60725475,1918.7,1918.6,16.60303045]
[1688292137022,0.64356412,1918.7,1918.6,16.60303045]
[1688292138524,1.05638627,1918.7,1918.6,16.60303045]
[1688292142533,1.34310262,1918.7,1918.6,16.03557729]
[1688292143129,1.05638627,1918.7,1918.6,16.03557729]
[1688292143323,6.22558627,1918.7,1918.6,16.03557729]
[1688292143929,5.81276412,1918.7,1918.6,3.52053]
[1688292144324,6.09948047,1918.7,1918.6,3.52053]
[1688292144532,6.09948047,1918.7,1918.6,16.03273518]
[1688292145035,5.81276412,1918.7,1918.6,16.03273518]
[1688292146032,5.81276412,1918.7,1918.6,16.03246309]
[1688292146435,0.64356412,1918.7,1918.6,16.03246309]
[1688292146633,0.33084412,1918.7,1918.6,16.03246309]
[1688292148538,0.33084412,1918.7,1918.6,16.13646309]
[1688292156343,0.33084412,1918.7,1918.6,16.54929545]
[1688292156639,0.33084412,1918.7,1918.6,16.44529545]
[1688292156841,0.64355412,1918.7,1918.6,16.44529545]
[1688292160242,0.93027047,1918.7,1918.6,16.44529545]
[1688292160746,0.93027047,1918.7,1918.6,16.03246309]
[1688292161944,0.64355412,1918.7,1918.6,16.03246309]
[1688292162340,0.93027047,1918.7,1918.6,3.52053]
[1688292166544,0.64355412,1918.7,1918.6,3.52053]
[1688292170351,0.33084412,1918.7,1918.6,16.03242852]
[1688292172151,0.64355412,1918.7,1918.6,16.03242852]
[1688292178752,0.33084412,1918.7,1918.6,16.03242852]
[1688292180351,0.64355412,1918.7,1918.6,16.03242852]
[1688292181149,0.33084412,1918.7,1918.6,16.03242852]
[1688292182146,0.64355412,1918.7,1918.6,16.03242852]
[1688292182750,5.90665412,1918.7,1918.6,16.03242852]
[1688292184253,5.59394412,1918.7,1918.6,16.03242852]
[1688292184448,0.64355412,1918.7,1918.6,16.03242852]
[1688292197059,5.73625412,1918.7,1918.6,16.03242852]
[1688292198467,5.73625412,1918.7,1918.6,16.44509805]
[1688292202171,6.02297047,1918.7,1918.6,16.44509805]
[1688292203879,5.73625412,1918.7,1918.6,16.44509805]
[1688292204064,6.02297047,1918.7,1918.6,15.71969852]
[1688292204770,6.02297047,1918.7,1918.6,16.03242852]
[1688292206169,6.02297047,1918.7,1918.6,12.82462852]
[1688292208175,5.73625412,1918.7,1918.6,16.03242852]
[1688292212883,5.42354412,1918.7,1918.6,16.03242852]
[1688292213082,0.33084412,1918.7,1918.6,16.03242852]
[1688292213281,0.64355412,1918.7,1918.6,16.03242852]
[1688292219188,0.93027047,1918.7,1918.6,16.03242852]
[1688292219385,0.64355412,1918.7,1918.6,16.03242852]
[1688292225590,0.33084412,1918.7,1918.6,16.03242852]
[1688292225793,0.64355412,1918.7,1918.6,16.03242852]
[1688292239609,0.64355412,1918.7,1918.6,16.44434066]
[1688292242511,0.33084412,1918.7,1918.6,16.44434066]
[1688292252319,0.33084412,1918.7,1918.6,17.80872669]
[1688292254323,0.33084412,1918.7,1918.6,16.44434066]
[1688292258416,0.33084412,1918.7,1918.6,17.80872669]
[1688292268626,0.33084412,1918.7,1918.6,20.41488508]
[1688292268831,5.1148,1918.9,1918.6,22.46170973]
[1688292269027,5.1148,1918.9,1918.8,3.2078]
[1688292269231,5.1148,1918.9,1918.8,16.03239852]
[1688292276225,5.33866646,1918.9,1918.8,16.03239852]
[1688292280335,5.1148,1918.9,1918.8,16.03239852]
[1688292281135,5.1148,1918.9,1918.8,16.45436427]
[1688292282529,0.00781718,1919.0,1918.8,28.14144525]
[1688292282828,0.93792,1919.3,1918.9,19.97511266]
[1688292283027,9.9909,1919.2,1919.1,0.31265]
[1688292283224,4.8532,1919.2,1919.1,16.59980168]
[1688292285527,5.12204828,1919.2,1919.1,16.59980168]
[1688292287537,5.43467828,1919.2,1919.1,16.59980168]
[1688292287841,5.72139463,1919.2,1919.1,16.03234852]
[1688292288035,5.43467828,1919.2,1919.1,16.03234852]
[1688292291233,5.12204828,1919.2,1919.1,16.03234852]
[1688292294345,5.43467828,1919.2,1919.1,16.03234852]
[1688292294640,5.72139463,1919.2,1919.1,16.03234852]
[1688292297338,5.43467828,1919.2,1919.1,16.44759634]
[1688292298249,5.72139463,1919.2,1919.1,16.44759634]
[1688292298631,5.72139463,1919.2,1919.1,16.42839634]
[1688292299737,5.43467828,1919.2,1919.1,16.42839634]
[1688292300740,5.72139463,1919.2,1919.1,16.42839634]
[1688292302538,5.43467828,1919.2,1919.1,16.42839634]
[1688292302939,5.72139463,1919.2,1919.1,16.42839634]
[1688292303534,5.43467828,1919.2,1919.1,16.42839634]
[1688292305042,5.72139463,1919.2,1919.1,16.42839634]
[1688292307935,5.72139463,1919.2,1919.1,16.03234852]
[1688292314053,5.43467828,1919.2,1919.1,16.03234852]
[1688292314254,5.72139463,1919.2,1919.1,16.03234852]
[1688292319358,5.43467828,1919.2,1919.1,16.03234852]
[1688292320961,5.72139463,1919.2,1919.1,16.03234852]
[1688292323754,5.72139463,1919.2,1919.1,12.82454852]
[1688292326364,5.43467828,1919.2,1919.1,12.82454852]
[1688292329365,0.86819463,1919.2,1919.1,12.82454852]
[1688292329560,0.58147828,1919.2,1919.1,12.82454852]
[1688292334873,0.86819463,1919.2,1919.1,12.82454852]
[1688292335268,0.58147828,1919.2,1919.1,12.82454852]
[1688292336270,0.86819463,1919.2,1919.1,12.82454852]
[1688292338673,0.58147828,1919.2,1919.1,12.82454852]
[1688292342573,0.86819463,1919.2,1919.1,12.82454852]
[1688292343573,5.92909463,1919.2,1919.1,12.82454852]
[1688292353088,0.58147828,1919.2,1919.1,12.82454852]
[1688292359799,5.64269463,1919.2,1919.1,12.82454852]
[1688292384212,5.35597828,1919.2,1919.1,12.82454852]
[1688292386422,5.64269463,1919.2,1919.1,12.82454852]
[1688292387016,5.35597828,1919.2,1919.1,12.82454852]
[1688292389723,0.58147828,1919.2,1919.1,12.82454852]
[1688292395327,0.86819463,1919.2,1919.1,12.82454852]
[1688292396727,0.58147828,1919.2,1919.1,12.82454852]
[1688292398629,0.86819463,1919.2,1919.1,12.82454852]
[1688292399631,0.58147828,1919.2,1919.1,12.82454852]
[1688292401230,0.86819463,1919.2,1919.1,12.82454852]
[1688292401632,0.58147828,1919.2,1919.1,12.82454852]
[1688292405431,0.86819463,1919.2,1919.1,12.82454852]
[1688292405930,0.26884828,1919.2,1919.1,12.82454852]
[1688292410338,0.26884828,1919.2,1918.6,3.41090563]
[1688292410339,4.07599463,1919.2,1918.6,3.41090563]